[Event "Bangabandhu Premier Div League 2022"]
[Site "Dhaka"]
[Date "2022.11.30"]
[Round "1.17"]
[White "Mendonca, Leon Luke"]
[Black "Nayem, Haque"]
[Result "1-0"]
[ECO "D38"]
[WhiteElo "2565"]
[BlackElo "2189"]
[Annotator "TA"]
[PlyCount "136"]
[EventDate "2022.11.30"]
[EventType "team-tourn"]
[EventCountry "BAN"]
[SourceTitle "playchess.com"]
[Source "ChessBase"]
[SourceQuality "1"]
[TimeControl "40/5400+30:1800+30"]

{[%evp 36,136,50,45,52,31,31,30,45,16,39,43,47,25,45,57,95,86,98,95,1827,0,60,0,1787,0,73,0,1752,0,54,0,1703,0,58,0,108,95,209,127,494,0,202,0,490,0,203,0,474,0,105,0,275,268,244,0,215,0,272,0,219,0,264,0,224,0,266,0,204,0,266,0,216,0,261,0,226,0,256,0,193,0,279,0,218,0,280,289,29993,0,189,0,29993,0,145,0,907,0,127,0,874,353,344]} 1. d4 {[%emt 0:00:04]} Nf6 {[%emt 0:00:06]} 2. c4 {[%emt 0:00:07]} e6 {[%emt 0:00:03]} 3. Nf3 {[%emt 0:00:13]} d5 {[%emt 0:00:05]} 4. Nc3 {[%emt 0:00:05]} Bb4 5. Qa4+ {[%emt 0:00:33]} Nc6 {[%emt 0:01:10]} 6. a3 {[%emt 1:32:28]} Be7 {[%emt 0:12:35]} 7. e3 {[%emt 0:00:30]} O-O {[%emt 0:02:16]} 8. Qc2 a6 {[%emt 0:06:02]} 9. Bd2 dxc4 {[%emt 0:02:06]} 10. Bxc4 {[%emt 0:00:00]} Bd6 {[%emt 0:00:02]} 11. Bf1 {[%emt 0:02:00]} Be7 12. Bc4 {[%emt 0:00:00]} Bd6 {[%emt 0:00:00]} 13. Bf1 {[%emt 0:01:00]} Be7 14. Bc4 {[%emt 0:00:00]} Bd6 {[%emt 0:00:00]} 15. Bf1 {[%emt 0:01:00]} Be7 16. Bc4 {[%emt 0:00:00]} Bd6 {[%emt 0:00:23]} 17. Bf1 {[%emt 0:01:00]} Be7 18. Bc4 {[%emt 0:00:00]} Bd6 {[%emt 1:14:42]} 19. O-O {[%emt 0:00:00]} e5 {[%emt 0:00:30] [#] D38: Queen's Gambit Declined: Ragozin Defence (4 Nf3 Bb4).} 20. dxe5 $146 {[%emt 0:00:00]} ({Predecessor:} 20. d5 Ne7 21. h3 Bf5 22. e4 Bd7 23. Rfd1 Ng6 24. Bf1 Nh5 25. Bg5 Qc8 26. Be3 f5 27. Rac1 f4 28. Bd2 Qd8 29. Be2 Nh4 30. Na2 Nxf3+ 31. Bxf3 Qg5 32. Kf1 a5 33. Qd3 b5 34. b4 {1-0 (42) Karpov,A (2668)-Vescovi,G (2592) Guarulhos 2006}) 20... Nxe5 {[%emt 0:00:00]} 21. Nxe5 {[%emt 0:00:00]} Bxe5 {[%emt 0:00:00] White has an edge.} 22. h3 {[%emt 0:02:30]} Qe7 {[%emt 0:00:00]} 23. f4 Bxc3 {[%emt 0:00:00]} 24. Bxc3 {[%emt 0:00:00]} ({Reject} 24. bxc3 Bd7 25. Be2 Bc6 $17) ({Much worse is} 24. Qxc3 b5 25. Bd3 Bb7 $15) 24... Qxe3+ {[%emt 0:00:00]} 25. Kh2 Qe4 {[%emt 0:00:00] Against Rae1} 26. Bd3 {[%emt 0:00:00][%mdl 1024] White has strong compensation. A strong pair of Bishops.} Qc6 27. Rf3 {[%emt 0:00:00]} Qe4 $2 {[%emt 0:00:00][%mdl 8192]} 28. Rff1 $2 {[%emt 0:00:00]} ({Only move:} 28. Bxe4 $18 {White wants to mate with Bxf6.} Nxe4 29. Qxe4) 28... Qc6 $14 {[%emt 0:00:00]} 29. Rf3 $2 {[%emt 0:00:00][%mdl 8192]} (29. Rac1 $14) 29... Qe4 $1 $18 {[%emt 0:00:00]} 30. Rff1 $2 {[%emt 0:00:00]} (30. Bxe4 $18 {and the rest is easy. Intending Bxf6 and mate.} Ne8 31. Bb4) 30... Qc6 $16 {[%emt 0:00:00]} 31. Rf3 $2 {[%emt 0:00:00][%mdl 8192]} (31. Rac1 $16) 31... Qe4 $1 $18 {[%emt 0:00:00]} 32. Rff1 $2 {[%emt 0:00:00]} (32. Bxe4 $18 Nh5 33. g4) 32... Qc6 $14 {[%emt 0:00:00]} 33. Rf3 $2 {[%emt 0:00:00][%mdl 8192]} (33. Rac1 $14) 33... Qe4 $1 $18 {[%emt 0:00:00]} 34. Rff1 $2 {[%emt 0:00:00]} (34. Bxe4 $18 Nxe4 35. Qxe4) 34... Qc6 $14 {[%emt 0:00:00]} 35. Rf3 {[%emt 0:00:00]} (35. Rac1 $14) 35... h6 {[%emt 0:00:00]} (35... Qe4 $1 $11) 36. Re1 $1 $16 {[%emt 0:07:00]} Rd8 {[%emt 0:00:00]} (36... Re8 $16) 37. Qf2 {[%emt 0:00:00]} Rf8 $2 {[%emt 0:00:00][%mdl 8192]} (37... b5 $16) 38. Qc2 (38. Rg3 $142) 38... Rd8 $18 {[%emt 0:00:00]} 39. Qf2 $2 {[%emt 0:00:00]} (39. Rg3 $1) 39... Rf8 $1 {[%emt 0:00:00]} 40. Qc2 (40. Rg3 $142) 40... Rd8 {[%emt 0:00:00]} 41. Qf2 $2 {[%emt 0:14:09]} (41. Rg3 $1) 41... Rf8 $1 {[%emt 0:21:04]} 42. Qc2 $2 (42. Rg3 $18) 42... Rd8 $16 {[%emt 0:01:57]} 43. Qf2 {[%emt 0:03:03]} ({Better is} 43. Rg3 $1 $16 Nh5 44. Be4) 43... a5 $2 {[%emt 0:09:58][%mdl 8192]} (43... Rf8 $1 $11 {and Black is okay.}) 44. Qh4 $18 Kf8 {[%emt 0:00:00]} 45. Qf2 {[%emt 0:01:00]} Kg8 $1 {[%emt 0:01:00]} 46. Qh4 Kf8 $1 {[%emt 0:00:00]} 47. Qf2 {[%emt 0:01:00]} Kg8 $1 {[%emt 0:01:00]} 48. Qh4 Kf8 $1 {[%emt 0:00:00]} 49. Qf2 {[%emt 0:01:00]} Kg8 $1 {[%emt 0:01:00]} 50. Qh4 Kf8 $1 {[%emt 0:00:00]} 51. Qf2 {[%emt 0:01:00]} Kg8 $1 {[%emt 0:01:00]} 52. Qh4 Kf8 $1 {[%emt 0:00:00]} 53. Qf2 {[%emt 0:01:00]} Kg8 $1 {[%emt 0:01:00]} 54. Qh4 Kf8 $1 {[%emt 0:00:00]} 55. Qf2 {[%emt 0:01:00]} Kg8 $1 {[%emt 0:01:00]} 56. Qh4 Kf8 $1 {[%emt 0:00:00]} 57. Qf2 {[%emt 0:01:00]} Kg8 $1 {[%emt 0:01:00]} 58. Qh4 (58. Rfe3 $142 {Bxf6 is the strong threat.} Bd7 59. Qg3) 58... Kf8 $1 {[%emt 0:00:00]} 59. Qf2 {[%emt 0:01:00]} Kg8 $1 {[%emt 0:01:00]} 60. Qh4 Kf8 $1 61. Rg3 {[%emt 0:10:59]} Kg8 $2 {[%emt 0:00:09]} (61... Rd6 $18 62. Be5 Bd7) 62. Rf3 $2 (62. Bxf6 g6 63. Bxg6 Bg4 64. Qxh6 Qxf6 65. Bh7+ Kh8 66. Qxf6+ Kxh7 67. Rxg4 Rh8 68. Qh4#) 62... Kf8 $1 {[%emt 0:02:34] [#]} 63. Rg3 $2 {[%emt 0:00:00]} (63. Be4 $1 $18 {[%mdl 512]} Qb6 64. Be5) 63... Kg8 $1 {[%emt 0:00:00]} 64. Rf3 $2 (64. Bxf6 {mates} Bg4 65. Rxg4 g6 66. Bxg6 Qxg2+ 67. Rxg2 Rd2 68. Qxh6 Rxg2+ 69. Kxg2 fxg6 70. Qg7#) 64... Kf8 $1 $16 {[%emt 0:01:00]} 65. Rg3 $40 {[%mdl 128] White is up to no good. White is more active.} (65. Be5 $16) 65... Bd7 $2 {[%emt 0:05:55][%mdl 8192]} (65... Kg8 $11 66. Bxf6 g6 67. Bxg6 Bg4 68. Qxh6 Qxf6 69. Bh7+ Kh8 70. Qxf6+ Kxh7 71. Rxg4 Rh8 72. Qh4#) 66. Rf3 $2 {[%emt 0:08:49]} (66. Ree3 $18 {[%cal Og3g7] is more deadly. Black must now prevent Rxg7!} Bg4 67. hxg4 Rxd3 68. Rxd3) 66... Bc8 $1 {[%emt 0:00:00]} 67. Rg3 (67. Be5 $16) 67... Bd7 $2 {[%emt 0:01:00][%mdl 8192]} (67... Kg8 $11 68. Bxf6 g6 69. Bxg6 Bg4 70. Qxh6 Qxf6 71. Bh7+ Kh8 72. Qxf6+ Kxh7 73. Rxg4 Rh8 74. Qh4#) 68. Bxf6 {[%emt 0:00:00]} (68. Ree3 $142 {[%cal Og3g7] And now Rxg7! would win.} Bxh3 {[#]} 69. Rxg7 $3 {[%mdl 512]} Rxd3 70. Rxd3) 68... Qxf6 {[%emt 0:00:26] Weighted Error Value: White=1.80/Black=0.17 (very precise)} 1-0

[Event "Bangabandhu Premier Div League 2022"]
[Site "Dhaka"]
[Date "2022.11.30"]
[Round "1.18"]
[White "Mendonca, Leon Luke"]
[Black "Nayem, Haque"]
[Result "*"]
[WhiteElo "2565"]
[BlackElo "2189"]
[Annotator "TA"]
[PlyCount "33"]
[EventDate "2022.11.30"]
[EventType "team-tourn"]
[EventCountry "BAN"]
[SourceTitle "playchess.com"]
[Source "ChessBase"]
[SourceQuality "1"]
[TimeControl "40/5400+30:1800+30"]

{[%evp 5,5,39]} 1. e4 {[%emt 0:00:06]} e5 {[%emt 0:00:10]} 2. Nf3 {[%emt 0:00:11]} Nc6 {[%emt 0:00:07]} 3. Bb5 {[%emt 0:00:02] [#] A rather calm draw.} {Predecessor:} Nf6 $146 4. O-O Nxe4 5. Re1 Nd6 6. Nxe5 {C67: Ruy Lopez: Berlin Defence: 4 0-0 Nxe4.} Be7 7. Bf1 Nxe5 8. Rxe5 O-O 9. Nc3 Bf6 10. Re1 Re8 11. Nd5 Rxe1 12. Nxf6+ Qxf6 13. Qxe1 b6 14. d3 Bb7 15. Qb4 c5 16. Qf4 Qxf4 17. Bxf4 {½-½ (41) Giri,A (2764)-So,W (2760) chess24.com INT 2022} *

[Event "Bangabandhu Premier Div League 2022"]
[Site "Dhaka"]
[Date "2022.11.30"]
[Round "1.18"]
[White "Abu Sufian, Shakil"]
[Black "Shawket Bin, Osman Shaon"]
[Result "1-0"]
[ECO "C60"]
[WhiteElo "2229"]
[BlackElo "2069"]
[Annotator "TA"]
[PlyCount "171"]
[EventDate "2022.11.30"]
[EventType "team-tourn"]
[EventCountry "BAN"]
[SourceTitle "playchess.com"]
[Source "ChessBase"]
[SourceQuality "1"]
[TimeControl "40/5400+30:1800+30"]

{[%evp 12,171,26,24,52,45,79,72,160,169,157,157,154,54,164,0,157,0,147,0,156,0,136,0,152,141,161,144,161,158,237,147,204,0,237,222,237,0,241,0,241,0,236,0,270,0,239,0,257,0,233,0,262,0,245,0,263,248,2058,0,217,0,233,0,222,0,238,0,264,0,250,0,254,0,234,154,2166,0,228,0,289,291,282,282,833,0,195,0,277,0,203,0,283,0,185,0,312,315,320,317,306,-372,267,0,333,316,326,327,323,295,326,325,329,329,329,326,575,0,303,0,566,0,279,0,320,0,261,0,306,0,264,0,312,270,310,0,305,0,316,264,260,271,318,307,352,328,310,322,721,722,713,712,746,-522,689,0,730,733,709,633,887,877]} 1. e4 {[%emt 0:00:06]} e5 {[%emt 0:00:10]} 2. Nf3 {[%emt 0:00:11]} Nc6 {[%emt 0:00:07]} 3. Bb5 {[%emt 0:00:02]} g6 4. O-O Bg7 {[%emt 0:03:34]} 5. c3 {[%emt 0:05:19]} Nge7 {[%emt 1:29:09]} 6. d4 {[%emt 0:00:18][%cal Bd2d4,Bd4d5,Bd5d6][%mdl 32]} a6 {[%emt 0:00:30]} 7. Ba4 {[%emt 0:04:05]} O-O {[%emt 0:00:00] C60: Ruy Lopez: Unusual Black 3rd moves and 3...g6.} 8. d5 {[%emt 0:10:28]} Nb8 {[#]} 9. d6 $1 {[%emt 0:01:23]} Nec6 (9... cxd6 $142 10. Qxd6 Nbc6) 10. Bg5 $16 {[%emt 0:04:06]} f6 {[%emt 0:00:00]} 11. Be3 {[%emt 1:10:02]} Kh8 {[%emt 0:00:00]} 12. Bc1 {[%emt 0:00:00] White has more active pieces.} (12. c4 $16) 12... Kg8 {[%emt 0:00:00]} (12... cxd6 $14 13. Qxd6 Na5) 13. Be3 Kh8 $1 {[%emt 0:00:00]} 14. Bc1 {[%emt 0:00:00]} Kg8 $1 {[%emt 0:00:00]} 15. Be3 Kh8 $1 {[%emt 0:00:00]} 16. Bc1 {[%emt 0:00:00]} Kg8 $1 {[%emt 0:00:00]} 17. Be3 {[%emt 0:03:00]} Kh8 $1 {[%emt 0:00:00]} 18. Bc5 Re8 19. Bb3 $36 {[%emt 0:00:00][%mdl 2048] Keeping Black busy.} cxd6 {[%emt 0:00:00]} 20. Bxd6 {[%emt 0:00:00]} ({Don't play} 20. Qxd6 $6 Bf8 21. Qd5 Bxc5 22. Qxc5 d6 $14) 20... Rf8 {[%emt 0:00:00] Inhibits Bf7.} (20... Ne7 $16 21. Nbd2 Nbc6) 21. Bc5 Re8 (21... Ne7 $16 22. Na3 d5) 22. Bd6 $2 ({White should try} 22. Bf7 $18) 22... Qb6 $2 {[%emt 0:00:00]} (22... Rf8 $1 $11) 23. Na3 {[%emt 0:00:00] Black must now prevent Bf7.} Qd8 {[%emt 0:00:00]} 24. Nb1 $2 ({White should play} 24. Bf7 $18) 24... Qb6 $2 {[%emt 0:00:00]} (24... Rf8 $11) 25. Na3 {[%emt 0:00:00] Threatens to win with Bf7.} Qd8 $1 {[%emt 0:00:00]} 26. Nb1 $2 {[#]} (26. Bf7 $18) 26... Qb6 $146 {[%emt 0:00:00]} (26... Rf8 $11) ({Predecessor:} 26... Ne7 27. Nbd2 Nbc6 28. a4 Na5 29. Nc4 Nxc4 30. Bxc4 b6 31. Bf7 Rf8 32. Bd5 Ra7 33. Bb8 Rb7 34. Bd6 Ra7 35. Qb3 f5 36. Nxe5 Nxd5 37. Qxd5 Qf6 38. Bxf8 Bxf8 39. exf5 d6 40. Ng4 Qg5 41. Qd4+ Rg7 42. f6 Rf7 43. Qc4 {1-0 (31) Slobodjan,R (2525)-Reipsch,J (2240) Meisdorf 1996}) 27. Na3 $2 {[%emt 0:00:00]} (27. Nh4 $18 Nd8 28. Na3) 27... Nd8 {[%emt 0:00:00][%mdl 8192] Inhibits Bf7.} (27... Qd8 $1 $11) 28. Nb1 {[%emt 0:00:00]} ({But not} 28. Nc4 Qc6 29. Ba3 Bf8 30. Bxf8 Rxf8 $18) 28... Ndc6 $1 {[%emt 0:00:00]} 29. Na3 $2 {[%emt 0:00:00]} (29. Bf7 $18 Re6 30. Na3) 29... Nd8 $2 {[%emt 0:00:00][%mdl 8192]} (29... Qd8 $11) 30. Nb1 {[%emt 0:00:00]} Ndc6 $1 {[%emt 0:00:00]} 31. Na3 $2 {[%emt 0:00:00]} (31. Bf7 $18 Re6 32. Na3) 31... Nd8 $2 {[%emt 0:00:00][%mdl 8192]} (31... Qd8 $11) 32. Nb1 {[%emt 0:00:00]} ({Don't take} 32. Nc4 Qc6 33. Bb4 Bf8 34. Bxf8 Rxf8 $18) 32... Ndc6 $1 {[%emt 0:00:00]} 33. Na3 $2 {[%emt 0:00:00]} (33. Bf7 $18 Re6 34. Na3) 33... Nd8 $2 {[%emt 0:00:18][%mdl 8192]} (33... Qd8 $11) 34. Nc4 {[%emt 0:00:00]} Ndc6 $2 {[%emt 0:00:00]} (34... Qc6 35. Bb4 Bf8) 35. Na3 $2 {[%emt 0:00:00]} ({Only move:} 35. Nxb6 $18 Ne7 36. Bxe7 Rxe7 37. Qd6) 35... Nd8 $2 {[%emt 0:01:00]} (35... Qd8 $11 {and Black stays safe.}) 36. Nc4 $2 {[%emt 0:00:00]} ({Better is} 36. h4 $18) 36... Qc6 $2 {[%emt 0:00:00]} (36... Ndc6 $1 $11 {and Black is okay.} 37. Nxb6 Ra7) 37. Na3 {[%emt 0:00:00]} Qb6 $1 {[%emt 0:01:00]} 38. Nc4 $2 {[%emt 0:00:00]} (38. h4 $18) 38... Qc6 $2 {[%emt 0:00:00]} (38... Ndc6 $11 39. Nxb6 Na5) 39. Na3 {[%emt 0:00:00]} Qb6 $1 {[%emt 0:01:00]} 40. Nc4 {[%emt 0:00:00]} Qc6 {[%emt 0:00:00]} 41. Na3 {[%emt 0:00:00]} Qb6 $1 {[%emt 0:31:00]} 42. Nc4 {[%emt 0:00:00]} Qc6 43. Qd5 {[%emt 0:06:32] [#] Strongly threatening Qxc6.} Qb6 {[%emt 0:01:00]} (43... b5 $16) 44. Qd1 $2 {[%emt 0:00:00]} (44. Nxb6 Nbc6 45. Nxa8) 44... Qc6 $18 45. Qd5 $2 {[%emt 0:01:00]} (45. Ba3 $18) 45... Ne6 $2 {[%emt 0:09:36][%mdl 8192]} (45... Qb6 $1 $11 46. Nxb6 Nbc6 47. Nxa8 Ne6) 46. Qxc6 {[%emt 0:01:16]} Nxc6 {[%emt 0:00:23]} 47. Nb6 {[%emt 0:00:09] Inhibits b5.} Nb8 $2 {[%emt 0:05:13]} (47... Ra7 48. Bxe6 dxe6) 48. Nc4 $2 (48. Nxa8 Nc6 49. Nb6) 48... Nc6 {[%emt 0:00:00]} 49. Nb6 $2 {Prevents b5.} (49. a4 $18) 49... Ra7 $2 {[%emt 0:00:00][%mdl 8192]} (49... Nb8 $1 $11 50. Nxa8 Nc6) 50. Nc4 {[%emt 0:01:05]} Ra8 $1 {[%emt 0:00:00]} 51. Nb6 {Inhibits b5.} Ra7 {[%emt 0:00:00]} 52. Nc4 {[%emt 0:01:00]} Ra8 $1 {[%emt 0:00:00]} 53. Nb6 $2 {[%emt 0:02:10] Inhibits b5.} (53. a4 $18) 53... Ra7 $2 {[%emt 0:00:00][%mdl 8192]} (53... Nb8 $11 54. Nxa8 Nc6) 54. Bxe6 dxe6 {[%emt 0:00:00]} 55. Bc5 {[%emt 0:35:48]} Bf8 {[%emt 0:01:57]} 56. Bd6 {[%emt 0:00:00][%mdl 8192]} Bg7 $4 {[%emt 0:00:00][%mdl 8192]} (56... Bxd6 $19 57. Rfd1 Bc7 58. Nxc8 Rxc8) 57. Bc5 Bf8 {[%emt 0:01:00]} 58. Be3 {[%emt 0:00:00]} a5 {[%emt 0:00:39]} 59. Nxc8 {[%emt 0:00:00]} Rxc8 {[%emt 0:00:02]} 60. Bxa7 {[%emt 0:00:00]} Nxa7 {[%emt 0:00:01]} 61. Rfd1 {[%emt 0:00:00]} Nb5 62. Rd7 {[%emt 0:00:00]} Nd6 {[%emt 0:01:38]} 63. Rd1 {[%emt 0:00:00]} Nb5 $2 {[%emt 0:00:37]} (63... Rc6 {is a better defense.} 64. Ne1 Kg8) 64. Ra1 {[%emt 0:00:00]} Nd6 65. Rd1 $2 {[%emt 0:00:00]} (65. a4) 65... Nb5 $1 {[%emt 0:01:00]} 66. Ra1 {[%emt 0:00:00]} (66. Rf7 $142) 66... Nd6 67. Rd1 $2 {[%emt 0:00:00]} (67. a4 $18) 67... Rc6 $2 {[%emt 0:00:00][%mdl 8192]} (67... Nb5 $1 $11 68. g4 g5) 68. Ra1 {[%emt 0:00:00]} Rc8 $1 69. Rd1 $2 {[%emt 0:00:00]} (69. Nd2 $18) 69... Rc6 $2 {[%emt 0:00:00][%mdl 8192]} (69... Nb5 $11 {and Black has nothing to worry.} 70. g4 g5) 70. Ra1 {[%emt 0:00:00]} Rc8 $1 71. Rd1 $2 {[%emt 0:00:00]} (71. Nd2 $18) 71... Rc6 $2 {[%mdl 8192]} (71... Nb5 $11 72. g4 g5) 72. Nd2 {[%emt 0:00:00]} Kg8 {[%emt 0:00:53]} 73. Nf3 {[%emt 0:00:00]} Kh8 $1 74. Nd2 {[%emt 0:00:00]} Kg8 $1 {[%emt 0:04:37]} 75. f3 {[%emt 0:00:00]} a4 {[%emt 0:00:26]} 76. c4 {[%emt 0:00:00]} f5 {[%emt 0:00:59]} 77. b3 {[%emt 0:00:00]} axb3 {[%emt 0:00:35]} 78. axb3 {[%emt 0:00:00]} b6 {[%emt 0:00:33]} 79. Ra1 {[%emt 0:00:00]} b5 $2 {[%emt 0:00:14]} (79... Rc8 80. Raa7 Ne8) 80. Ra8 {[%emt 0:00:00]} bxc4 {[%emt 0:01:19]} 81. Nxc4 {[%emt 0:00:00]} Rc8 {[%emt 0:00:00]} 82. Nd2 $4 {[%emt 0:00:00][%mdl 8192]} Rc6 $4 {[%mdl 8192]} (82... Rxa8 $19 83. Kf1 Ra2) 83. Nc4 {[%emt 0:00:00]} Rc8 $1 84. Rxc8 {[%emt 0:00:00] White is clearly winning.} Nxc8 {[%emt 0:02:00]} 85. Rd8 Ne7 {[%emt 0:00:00]} 86. Nxe5 {[%emt 0:00:00] Weighted Error Value: White=1.77/Black=0.72} 1-0